bitfinex/quotes_ETHUSD_20251201
["timestamp","ask_amount","ask_price","bid_price","bid_amount"]
[1764625591203,0.6737041,2796.4,2794.3,4.15269749]
[1764625591560,0.6737041,2796.4,2794.9,3.57793724]
[1764625593172,4.97532452,2796.4,2794.5,3.57843802]
[1764625593496,5.83044812,2796.4,2794.5,1.13109811]
[1764625594476,5.73074402,2796.4,2794.5,1.13109811]
[1764625595084,5.73074402,2796.4,2794.6,7.15765926]
[1764625595800,4.43114991,2796.4,2794.9,0.405504]
[1764625596000,4.43114991,2796.4,2794.9,1.13109811]
[1764625596001,3.57602631,2796.4,2794.9,1.13109811]
[1764625596181,4.30162042,2796.4,2794.9,1.13109811]
[1764625596568,4.66476107,2796.4,2794.6,3.57932963]
[1764625596901,1.13109811,2796.3,2794.6,0.001]
[1764625597203,0.72559411,2795.8,2794.6,0.001]
[1764625597390,0.72559411,2795.6,2794.6,0.001]
[1764625597594,0.36314065,2795.2,2794.6,0.001]
[1764625597768,0.574,2795.1,2794.6,0.001]
[1764625598199,0.36314065,2794.9,2794.6,0.001]
[1764625598375,0.574,2795.1,2794.6,0.001]
[1764625598700,0.0997041,2794.9,2794.6,0.001]
[1764625599071,0.36314065,2794.8,2794.6,0.001]
[1764625599273,5.24193635,2794.7,2794.6,0.001]
[1764625599467,7.03336104,2794.7,2794.6,0.001]
[1764625600082,4.3037957,2794.7,2794.6,0.001]
[1764625601238,4.3037957,2794.7,2794.4,0.001]
[1764625601239,0.72559411,2794.6,2794.4,0.001]
[1764625601386,0.36314065,2794.5,2794.4,0.001]
[1764625601728,0.76864465,2794.5,2794.4,0.001]
[1764625601888,3.2687256,2794.5,2794.4,0.001]
[1764625602412,0.36314065,2793.7,2791.8,7.16383694]
[1764625602718,0.575,2793.6,2791.9,0.72559411]
[1764625602920,0.575,2793.6,2792.0,0.78894311]
[1764625603416,0.575,2793.8,2792.1,19.8388273]
[1764625603621,0.575,2793.8,2792.2,0.405504]
[1764625604820,0.72559411,2793.6,2792.4,0.405504]
[1764625605817,0.72559411,2793.6,2792.3,3.58127708]
[1764625606015,0.78845589,2793.5,2792.2,3.58134877]
[1764625606397,0.78845589,2793.5,2792.2,7.16275411]
[1764625606700,0.72559411,2793.3,2792.4,3.58114883]
[1764625606887,0.72559411,2793.3,2792.4,7.16229766]
[1764625607388,0.72559411,2793.3,2792.4,3.58114883]
[1764625607589,0.72559411,2793.3,2792.5,0.75679063]
[1764625608396,0.72559411,2793.3,2792.6,0.405504]
[1764625608921,0.575,2793.5,2792.7,7.16152826]
[1764625608922,4.30533278,2793.5,2792.7,7.16152826]
[1764625609699,0.72559411,2793.6,2792.8,0.405504]
[1764625609904,0.72559411,2793.6,2792.9,0.75670323]
[1764625611022,10.73575722,2794.4,2793.0,3.98588352]
[1764625611223,0.575,2794.3,2793.0,7.56626304]
[1764625611405,1.88352441,2794.3,2793.1,0.83229663]
[1764625611595,2.60911852,2794.3,2793.1,0.83229663]
[1764625611931,0.36314065,2794.0,2793.1,0.83229663]
[1764625612220,0.36314065,2794.0,2792.9,0.405504]
[1764625612600,2.60911852,2794.3,2792.5,0.75679063]
[1764625612601,0.72559411,2793.7,2792.5,0.75679063]
[1764625612801,1.08873476,2793.3,2790.9,14.33229424]
[1764625613000,0.72559411,2793.0,2791.1,7.16563362]
[1764625613228,0.72559411,2793.0,2791.2,0.77406336]
[1764625613526,0.72559411,2793.0,2791.3,0.405504]
[1764625613726,1.08873476,2793.0,2791.2,0.77406336]
[1764625613898,9.81982058,2793.0,2791.2,0.77406336]
[1764625614101,0.36314065,2792.7,2791.3,0.7939697]
[1764625614428,0.575,2792.6,2791.3,0.7939697]
[1764625614637,0.93814065,2792.6,2791.3,1.3689697]
[1764625615298,0.72559411,2792.4,2791.4,3.58243175]
[1764625615497,2.41408259,2792.9,2791.4,8.01826466]
[1764625615698,9.09422647,2793.8,2791.5,10.22532458]
[1764625615935,0.0997041,2793.6,2791.5,10.22532458]
[1764625616231,11.3134472,2793.7,2792.0,0.405504]
[1764625616434,11.3134472,2793.7,2791.5,1.13109811]
[1764625616435,0.72559411,2793.4,2791.5,0.72559411]
[1764625616729,1.08873476,2793.0,2791.5,0.405504]
[1764625616897,0.575,2792.9,2791.5,0.405504]
[1764625617099,0.575,2793.2,2791.5,0.405504]
[1764625617297,0.72559411,2793.0,2791.9,0.405504]
[1764625617500,0.72559411,2793.0,2791.9,0.980504]
[1764625619541,3.58050771,2792.9,2792.1,0.405504]
[1764625619717,7.94967497,2792.9,2792.1,0.405504]
[1764625620097,7.94967497,2792.9,2791.9,4.15674623]
[1764625620302,0.72559411,2792.8,2791.6,0.75703675]
[1764625620613,0.72559411,2792.8,2791.7,0.575]
[1764625620811,0.72559411,2792.8,2791.7,0.405504]
[1764625621324,0.72559411,2792.5,2791.5,0.575]
[1764625621507,1.08873476,2792.5,2791.4,0.001]
[1764625621838,1.14682712,2792.4,2791.4,0.001]
[1764625622217,0.72559411,2792.5,2791.4,0.001]
[1764625623509,4.30668903,2792.5,2791.5,0.405504]
[1764625623724,7.88778395,2792.5,2791.5,0.405504]
[1764625624443,0.78865955,2792.9,2791.5,0.405504]
[1764625624444,4.36916726,2792.9,2791.5,0.405504]
[1764625624603,0.72559411,2792.8,2791.5,0.405504]
[1764625624807,0.86753423,2792.7,2791.7,0.405504]
[1764625625506,7.1617847,2792.6,2791.8,3.58191847]
[1764625625724,7.1617847,2792.6,2791.8,7.16383694]
[1764625625930,3.58089235,2792.6,2791.8,7.16383694]
[1764625626232,3.58089235,2792.6,2791.9,0.75693409]
[1764625626441,7.1617847,2792.6,2791.9,0.75693409]
[1764625627114,3.58059596,2792.9,2791.9,0.75693409]
[1764625627312,0.72559411,2792.8,2792.0,0.405504]
[1764625627743,3.58063878,2792.8,2792.1,7.16306722]
[1764625627910,3.58062241,2792.9,2792.2,0.75685712]
[1764625628109,3.58062241,2792.9,2792.1,7.16306722]
[1764625629241,0.575,2793.1,2792.1,7.16306722]
[1764625629441,0.575,2793.1,2792.1,7.73806722]
[1764625629829,3.58037952,2793.0,2792.1,7.73806722]
[1764625630640,7.16075904,2793.0,2792.1,7.73806722]
[1764625630939,7.93433494,2793.0,2792.1,8.55242434]
[1764625631605,7.93433494,2793.0,2792.0,0.405504]
[1764625631606,0.72559411,2792.9,2791.9,0.575]
[1764625631805,0.72559411,2792.7,2792.0,3.58166189]
[1764625632217,0.72559411,2792.7,2792.0,7.16332378]
[1764625632629,4.30603918,2793.0,2792.1,0.405504]
[1764625633039,7.88648425,2793.0,2792.1,0.405504]
[1764625633353,7.88648425,2793.0,2792.2,0.75688278]
[1764625633511,4.30603918,2793.0,2792.2,0.75688278]
[1764625633939,4.30603918,2793.0,2792.3,3.58127708]
[1764625634620,7.88648425,2793.0,2792.3,3.58127708]
[1764625635225,7.88648425,2793.0,2792.2,4.33822863]
[1764625635425,8.73263268,2793.0,2792.2,4.33822863]
[1764625635826,5.15218761,2793.0,2792.2,7.91963397]
[1764625636138,7.88648425,2793.0,2792.2,7.91963397]
[1764625636347,7.88648425,2793.0,2792.2,4.33822863]
[1764625637260,7.88648425,2793.0,2792.2,3.58134585]
[1764625640052,4.30603918,2793.0,2792.2,7.16275119]
[1764625640426,7.88648425,2793.0,2792.2,7.16275119]
[1764625642361,3.99577677,2793.1,2792.3,0.575]
[1764625642521,3.57922617,2793.9,2792.4,0.405504]
[1764625642726,0.575,2793.8,2792.4,0.405504]
[1764625642962,7.15845234,2793.9,2792.4,0.405504]
[1764625643135,0.575,2793.9,2792.6,0.405504]
[1764625643466,0.575,2793.9,2792.8,0.405504]
[1764625645261,0.72559411,2793.7,2792.9,7.16101542]
[1764625645476,6.452,2794.4,2793.0,0.405504]
[1764625645683,1.2202,2794.3,2793.2,0.405504]
[1764625645867,1.94579411,2794.3,2793.2,0.405504]
[1764625646253,9.10322173,2794.3,2793.2,0.405504]
[1764625646450,12.68193554,2794.3,2793.2,0.405504]
[1764625646949,9.46636238,2794.3,2793.2,0.405504]
[1764625647186,0.72559411,2794.0,2793.2,3.98553816]
[1764625647762,0.72559411,2794.0,2793.2,7.56566131]
[1764625647984,0.72559411,2794.0,2792.6,3.58080811]
[1764625648296,0.72559411,2794.0,2792.7,0.980504]
[1764625648452,0.575,2793.9,2792.7,0.980504]
[1764625648658,0.575,2793.9,2792.8,0.575]
[1764625648865,0.93814065,2793.9,2792.8,0.575]
[1764625649073,0.0997041,2793.2,2791.9,3.58278541]
[1764625649397,0.72559411,2793.0,2791.9,7.88104573]
[1764625649600,0.72559411,2793.0,2791.9,3.58278541]
[1764625649765,0.0997041,2792.7,2791.9,3.58275091]
[1764625649962,0.72559411,2793.0,2791.9,10.74633125]
[1764625650168,0.72559411,2793.0,2792.0,0.35827509]
[1764625650350,0.72559411,2793.0,2792.1,0.575]
[1764625650754,0.72559411,2793.0,2792.2,0.405504]
[1764625651583,4.30603568,2793.0,2792.3,3.58127708]
[1764625651784,4.30603568,2793.0,2792.3,4.03745519]
[1764625651995,4.30603568,2793.0,2792.3,7.61873227]
[1764625652492,4.30603568,2793.0,2792.3,4.03745519]
[1764625652993,9.09422647,2793.9,2792.3,7.61873227]
[1764625653287,0.575,2793.8,2792.4,0.405504]
[1764625653470,0.575,2793.8,2792.5,0.80242363]
[1764625653471,0.93814065,2793.8,2792.5,0.80242363]
[1764625653674,0.72559411,2793.6,2792.6,3.58089235]
[1764625654492,1.08873476,2793.6,2792.6,3.58089235]
[1764625654694,1.08873476,2793.6,2792.6,7.1617847]
[1764625655165,1.08873476,2793.6,2792.6,3.58089235]
[1764625655496,1.1827182,2793.5,2792.6,3.58089235]
[1764625656062,0.72559411,2793.3,2792.7,0.405504]
[1764625656302,0.72559411,2793.3,2792.5,1.37742363]
[1764625656638,0.72559411,2793.3,2792.5,4.95844333]
[1764625656768,0.72559411,2793.3,2792.5,8.53946392]
[1764625657097,0.72559411,2793.3,2792.5,4.95844333]
[1764625657302,0.78853278,2793.2,2792.5,4.1560197]
[1764625657788,0.78853278,2793.2,2792.5,7.73704029]
[1764625658406,1.59183624,2794.2,2792.6,0.405504]
[1764625658578,0.575,2794.1,2792.6,0.405504]
[1764625660475,0.72559411,2793.9,2792.8,0.405504]
[1764625660804,0.72559411,2793.9,2792.9,0.575]
[1764625661377,16.90508629,2793.9,2792.6,0.575]
[1764625661603,0.36314065,2793.8,2792.4,3.58106743]
[1764625661908,1.30059411,2793.7,2792.4,3.58106743]
[1764625662507,0.72559411,2793.5,2792.0,3.58159788]
[1764625662677,1.14644257,2793.4,2792.0,3.58159788]
[1764625662874,0.575,2793.3,2792.0,3.58159788]
[1764625663621,0.72559411,2793.1,2792.1,0.405504]
[1764625663914,3.58012315,2793.2,2792.1,0.405504]
[1764625664470,0.575,2793.3,2792.1,1.13109811]
[1764625664687,0.575,2793.3,2792.3,0.405504]
[1764625664881,0.72559411,2793.5,2792.5,0.405504]
[1764625665276,0.72559411,2793.5,2792.3,0.405504]
[1764625665494,1.08873476,2793.3,2791.7,3.58197967]
[1764625665692,10.87593475,2793.4,2791.7,3.58197967]
[1764625665693,0.72559411,2793.1,2791.7,3.58197967]
[1764625665898,0.575,2793.0,2791.8,0.405504]
[1764625666093,0.575,2793.0,2791.9,0.75805304]
[1764625666985,0.575,2793.0,2791.9,0.001]
[1764625668505,10.74152313,2792.9,2792.0,0.001]
[1764625672319,0.72559411,2792.6,2792.0,0.001]
[1764625674085,10.45508629,2792.1,2792.0,0.001]
[1764625674286,14.6116199,2792.1,2792.0,0.001]
[1764625674595,16.79406443,2792.1,2792.0,0.001]
[1764625675321,1.13109811,2792.0,2791.6,0.001]
[1764625675530,0.36314065,2791.6,2791.3,0.001]
[1764625675691,11.39322694,2791.6,2791.3,0.001]
[1764625675896,12.53254963,2791.6,2791.3,0.001]
[1764625676297,1.13109811,2791.5,2791.3,0.001]
[1764625676497,1.13109811,2791.5,2788.5,0.18712254]
[1764625676498,19.23431179,2791.5,2788.5,0.18712254]
[1764625676722,0.72559411,2790.9,2789.4,3.58491894]
[1764625676929,1.30059411,2790.9,2789.4,3.58491894]
[1764625677231,1.30059411,2790.9,2789.4,7.16991929]
[1764625677727,1.30059411,2790.9,2789.5,0.405504]
[1764625678233,0.72559411,2790.9,2789.6,0.575]
[1764625678394,3.58304863,2791.0,2789.9,1.13109811]
[1764625678599,7.16512018,2791.3,2789.9,1.13109811]
[1764625678801,3.58256009,2791.3,2789.9,1.13109811]
[1764625679226,0.72559411,2791.2,2789.9,1.13109811]
[1764625679428,3.58246448,2791.4,2789.9,1.13109811]
[1764625679606,3.58217509,2791.6,2789.9,1.13109811]
[1764625679807,3.58209554,2791.7,2790.5,0.405504]
[1764625680231,0.72559411,2791.6,2789.9,0.72559411]
[1764625680432,7.88060353,2791.7,2789.9,0.72559411]
[1764625680433,4.29850799,2791.7,2790.7,0.405504]
[1764625680736,7.16419108,2791.7,2790.7,0.405504]
[1764625680938,3.58209554,2791.7,2790.7,0.405504]
[1764625681519,7.16419108,2791.7,2790.7,0.405504]
[1764625682430,7.16419108,2791.7,2790.9,0.405504]
[1764625682631,7.93821019,2791.7,2790.9,0.405504]
[1764625684425,4.35611465,2791.7,2791.0,3.58294518]
[1764625684629,4.35611465,2791.7,2790.9,3.98856346]
[1764625684630,7.16419108,2791.7,2790.9,0.405504]
[1764625684829,7.16419108,2791.7,2791.0,0.405504]
[1764625685018,7.97452425,2791.7,2790.8,3.58417479]
[1764625685219,7.97452425,2791.7,2790.9,0.405504]
[1764625685418,7.97452425,2791.7,2790.8,3.58419721]
[1764625685630,7.97452425,2791.7,2790.9,0.001]
[1764625685834,0.85505243,2791.6,2790.9,0.001]
[1764625686341,1.58064654,2791.6,2790.9,0.001]
[1764625686523,0.72559411,2791.4,2790.9,0.001]
[1764625686723,1.30159411,2791.4,2790.9,0.001]
[1764625688446,3.58256009,2791.3,2790.9,0.001]
[1764625689031,0.72559411,2791.2,2790.9,0.001]
[1764625689237,3.58256009,2791.3,2790.9,0.001]
[1764625689548,7.164727,2791.5,2790.9,0.001]
[1764625689719,0.72559411,2791.4,2790.9,0.001]
[1764625690162,9.72949218,2791.0,2790.9,0.001]
[1764625690319,10.45508629,2791.0,2790.9,0.001]
[1764625690528,10.45508629,2791.0,2790.8,0.001]
[1764625690529,1.08873476,2790.9,2790.8,0.001]
[1764625690720,5.24680832,2790.9,2790.8,0.001]
[1764625691333,0.0997041,2790.7,2790.6,0.001]
[1764625692743,4.40862855,2790.7,2790.6,0.001]
[1764625693055,4.81413255,2790.7,2790.6,0.001]
[1764625693751,4.40862855,2790.7,2790.6,0.001]
[1764625693954,5.2470651,2790.7,2790.6,0.001]
[1764625694258,6.31568526,2790.7,2790.6,0.001]
[1764625694555,0.0997041,2790.4,2790.3,0.001]
[1764625694855,0.576,2790.4,2790.3,0.001]
[1764625695740,3.58333034,2790.7,2790.3,0.001]
[1764625695943,3.58185153,2791.9,2790.3,0.001]
[1764625695944,0.576,2791.2,2790.3,0.001]
[1764625696529,10.74883554,2791.0,2790.3,0.001]
[1764625696728,7.16589036,2791.0,2790.3,0.001]
[1764625697066,0.72559411,2790.9,2790.3,0.001]
[1764625697425,10.74883554,2791.0,2790.3,0.001]
[1764625697760,0.72559411,2790.9,2790.3,0.001]
[1764625698667,3.58320194,2790.8,2790.3,0.001]
[1764625699226,0.72559411,2791.0,2790.3,0.001]
[1764625699851,0.576,2791.9,2790.3,0.001]
[1764625700863,0.72559411,2791.7,2790.3,0.001]
[1764625701861,0.36314065,2791.5,2790.3,0.001]
[1764625702026,0.72559411,2791.3,2790.3,0.001]
[1764625702223,0.72559411,2791.3,2790.4,0.405504]
[1764625702723,0.72759411,2791.4,2790.4,0.405504]
[1764625704446,3.58256009,2791.3,2790.6,0.405504]
[1764625705734,4.31008805,2791.4,2790.6,0.405504]
[1764625705936,7.89258199,2791.4,2790.7,0.75726783]
[1764625707863,7.89258199,2791.4,2790.7,4.34054765]
[1764625708362,4.31008805,2791.4,2790.7,4.34054765]
[1764625708569,0.002,2791.4,2790.8,1.13109811]
[1764625709640,3.58447464,2791.4,2790.8,0.405504]
[1764625709941,0.71868574,2791.4,2790.7,0.980504]
[1764625710142,0.002,2791.4,2790.5,0.575]
[1764625710449,0.002,2791.4,2790.3,3.58480948]
[1764625710640,0.002,2791.4,2790.4,1.29186746]
[1764625711942,0.002,2791.4,2790.4,4.87546213]
[1764625712143,0.002,2791.4,2790.4,4.87557067]
[1764625712545,0.002,2791.4,2790.4,8.45928626]
[1764625712941,0.002,2791.4,2790.5,0.405504]
[1764625713143,0.002,2791.4,2790.7,0.405504]
[1764625713343,0.002,2791.4,2790.6,0.575]
[1764625713550,0.002,2791.4,2790.3,3.58484012]
[1764625713756,0.002,2791.4,2790.4,0.575]
[1764625713967,0.72559411,2791.3,2790.3,0.001]
[1764625714175,1.14748894,2791.2,2790.3,0.001]
[1764625715086,1.72248894,2791.2,2790.3,0.001]
[1764625715980,0.72559411,2790.9,2790.3,0.001]
[1764625717966,7.16640388,2790.8,2790.3,0.001]
[1764625718383,0.72559411,2790.7,2790.3,0.001]
[1764625718580,0.72559411,2790.9,2790.3,0.001]
[1764625719097,1.51475755,2790.9,2790.3,0.001]
[1764625719253,10.64522509,2790.9,2790.3,0.001]
[1764625719444,1.51475755,2790.9,2790.3,0.001]
[1764625720050,7.16640388,2790.8,2790.3,0.001]
[1764625720753,3.58320194,2790.8,2790.3,0.001]
[1764625721181,1.51675755,2790.9,2790.3,0.001]
[1764625721385,0.72759411,2790.9,2790.3,0.001]
[1764625721685,0.002,2790.9,2790.3,0.001]
[1764625721859,0.002,2790.9,2790.3,0.406504]
[1764625722179,0.002,2790.9,2790.4,7.16743118]
[1764625722584,0.002,2790.9,2790.4,3.58371559]
[1764625722752,0.002,2790.9,2790.4,7.98233259]
[1764625723279,0.002,2790.9,2790.4,4.398617]
[1764625723490,0.002,2790.9,2790.4,3.58371559]
[1764625723690,0.002,2790.9,2790.4,7.16743118]
[1764625724053,0.002,2790.9,2790.4,3.58371559]
[1764625724256,0.002,2790.9,2790.3,0.001]
[1764625724655,0.72559411,2790.6,2790.3,0.001]
[1764625724859,0.98560616,2790.5,2790.3,0.001]
[1764625725269,0.575,2790.8,2790.3,0.001]
[1764625725991,0.72559411,2790.6,2790.3,0.001]
[1764625726490,0.72559411,2790.4,2790.3,0.001]
[1764625726699,1.08873476,2790.4,2790.3,0.001]
[1764625726871,1.91432567,2790.4,2790.3,0.001]
[1764625727475,2.48932567,2790.4,2790.3,0.001]
[1764625728193,6.07304126,2790.4,2790.3,0.001]
[1764625729005,5.70990061,2790.4,2790.3,0.001]
[1764625729186,6.07304126,2790.4,2790.3,0.001]
[1764625729502,4.3093097,2790.4,2790.3,0.001]
[1764625729995,4.4090138,2790.4,2790.3,0.001]
[1764625730191,4.67245035,2790.4,2790.3,0.001]
[1764625730415,4.3093097,2790.4,2790.3,0.001]
[1764625730602,4.67245035,2790.4,2790.3,0.001]
[1764625730789,6.46870086,2790.4,2790.3,0.001]
[1764625731972,13.63613204,2790.4,2790.0,0.001]
[1764625732190,0.72559411,2790.0,2789.7,0.001]
[1764625732421,4.6732211,2789.8,2789.7,0.001]
[1764625733301,4.31008045,2789.8,2789.7,0.001]
[1764625735380,4.40978455,2789.8,2789.7,0.001]
[1764625735581,4.31008045,2789.8,2789.7,0.001]
[1764625735807,4.6732211,2789.8,2789.7,0.001]
[1764625736018,5.55658052,2789.8,2789.7,0.001]
[1764625738796,5.76943987,2789.8,2789.7,0.001]
[1764625739093,4.88608045,2789.8,2789.7,0.001]
[1764625740397,4.31008045,2789.8,2789.7,0.001]
[1764625740698,0.72559411,2789.8,2789.7,0.001]
[1764625741004,4.31008045,2789.8,2789.7,0.001]
[1764625741192,0.72559411,2789.8,2789.7,0.001]
[1764625741393,4.31008045,2789.8,2789.7,0.001]
[1764625741596,5.19922919,2789.8,2789.7,0.001]
[1764625741815,4.31008045,2789.8,2789.7,0.001]
[1764625743537,0.002,2790.4,2789.7,0.001]
[1764625744191,3.58577631,2790.4,2789.7,0.001]
[1764625744532,7.16955262,2790.4,2789.7,0.001]
[1764625744935,0.002,2790.4,2789.7,0.001]
[1764625745301,0.002,2790.4,2789.7,0.40023758]
[1764625745526,0.002,2790.4,2789.8,0.405504]
[1764625746930,0.002,2790.4,2790.0,1.13109811]
[1764625747238,0.002,2790.4,2790.2,0.405504]
[1764625749098,0.002,2790.4,2790.3,3.58384403]
[1764625749427,0.002,2790.4,2790.3,4.80427892]
[1764625749593,0.002,2790.4,2790.3,5.52987303]
[1764625749794,0.002,2790.4,2790.3,6.10587303]
[1764625750741,0.002,2790.4,2790.3,5.38027892]
[1764625752102,0.002,2790.4,2790.3,4.80427892]
[1764625752299,0.002,2790.4,2790.3,5.38027892]
[1764625752916,0.002,2790.4,2790.3,6.10587303]
[1764625753131,0.002,2790.4,2790.3,15.23634057]
[1764625754818,0.002,2790.7,2790.4,1.13109811]
[1764625755018,1e-08,2790.9,2790.8,10.26156565]
[1764625755607,1e-08,2790.9,2790.8,13.98829134]
[1764625756205,1e-08,2790.9,2790.8,14.56329134]
[1764625756545,1e-08,2790.9,2790.8,16.37795242]
[1764625758642,0.002,2791.4,2790.9,1.13109811]
[1764625758803,0.002,2791.4,2791.3,10.26156565]
[1764625759010,0.002,2791.4,2791.3,10.83656565]
[1764625759738,0.002,2791.4,2791.3,14.41912574]
[1764625760034,10.73883159,2793.6,2791.3,19.43336264]
[1764625760035,0.72559411,2793.5,2791.3,19.43336264]
[1764625760239,0.72559411,2793.5,2791.4,1.13109811]
[1764625760542,7.15922106,2793.6,2791.4,1.13109811]
[1764625761536,7.15922106,2793.6,2791.6,0.405504]
[1764625761772,10.73883159,2793.6,2791.6,4.7132732]
[1764625762036,10.73883159,2793.6,2791.6,5.2882732]
[1764625762211,10.73883159,2793.6,2791.6,6.10320409]
[1764625762412,10.73883159,2793.6,2791.6,5.52820409]
[1764625762612,10.73883159,2793.6,2791.6,6.10320409]
[1764625763347,10.73883159,2793.6,2791.6,5.52820409]
[1764625763542,10.73883159,2793.6,2791.6,6.10320409]
[1764625764211,7.15922106,2793.6,2791.6,6.10320409]
[1764625764844,7.15922106,2793.6,2791.6,5.52820409]
[1764625765027,7.15922106,2793.6,2791.6,6.10320409]
[1764625765948,0.72559411,2793.8,2791.6,6.10320409]
[1764625766819,4.30497256,2793.8,2791.6,6.10320409]
[1764625767019,7.88432684,2793.8,2791.6,6.8287982]
[1764625767345,20.59417283,2793.8,2791.6,6.2537982]
[1764625767546,9.13046754,2793.4,2791.6,5.52820409]
[1764625767719,9.13046754,2793.4,2791.6,6.10320409]
[1764625768045,11.46370529,2793.8,2791.6,6.10320409]
[1764625769221,11.46370529,2793.8,2791.6,7.17932338]
[1764625769625,9.13046754,2793.6,2791.6,6.60432338]
[1764625769825,9.13046754,2793.6,2791.6,6.10320409]
[1764625770758,10.73921601,2793.5,2791.6,5.52820409]
[1764625770954,7.15947734,2793.5,2791.6,6.10320409]
[1764625771317,7.15947734,2793.5,2791.6,7.17928478]
[1764625772851,3.5794824,2793.7,2791.8,0.405504]
[1764625773165,0.71588834,2793.6,2792.1,1.13109811]
[1764625773345,0.71588834,2793.6,2792.3,0.405504]
[1764625774835,0.72559411,2794.1,2792.5,1.13109811]
[1764625775050,0.72559411,2794.1,2792.7,0.355504]
[1764625775442,0.002,2793.6,2792.7,0.355504]
[1764625776921,0.002,2793.6,2792.9,0.72559411]
[1764625777128,0.002,2793.6,2793.1,0.405504]
[1764625778026,0.002,2793.6,2793.0,0.405504]
[1764625778365,0.002,2793.6,2793.1,0.575]
[1764625779027,0.002,2793.6,2793.2,3.58012315]
[1764625779954,0.002,2793.6,2793.3,0.575]
[1764625780660,0.002,2793.6,2791.8,10.74575541]
[1764625780953,0.002,2793.6,2792.2,1.13109811]
[1764625781173,0.002,2793.6,2792.3,0.575]
[1764625781942,0.72559411,2793.5,2792.1,7.16306722]
[1764625782141,0.72559411,2793.5,2792.2,0.575]
[1764625782343,1.0453529,2793.4,2792.2,0.575]
[1764625782734,1.40849355,2793.4,2792.2,0.575]
[1764625782946,1.0453529,2793.4,2792.2,0.575]
[1764625783146,7.15998996,2793.3,2792.3,7.16255416]
[1764625783351,7.15998996,2793.3,2792.4,0.405504]
[1764625783554,0.82053429,2793.2,2792.4,0.405504]
[1764625783854,0.82053429,2793.2,2792.3,3.58127708]
[1764625784059,0.82053429,2793.2,2792.5,0.575]
[1764625785167,7.16050266,2793.1,2792.5,0.575]
[1764625787560,7.15954848,2793.5,2792.6,0.405504]
[1764625787738,0.71615485,2793.4,2792.6,0.405504]
[1764625788869,7.15998996,2793.3,2792.6,3.98626948]
[1764625789036,3.57999498,2793.3,2792.6,3.98626948]
[1764625789448,3.57999498,2793.3,2792.6,7.56716183]
[1764625790184,0.002,2793.6,2792.6,7.56716183]
[1764625790666,0.002,2793.6,2792.7,0.72559411]
[1764625790978,0.002,2793.6,2792.9,0.405504]
[1764625791150,0.002,2793.6,2793.0,0.575]
[1764625792679,0.002,2793.6,2793.1,3.58025133]
[1764625793043,0.002,2793.6,2792.7,4.30633554]
[1764625793044,0.002,2793.6,2792.6,0.72559411]
[1764625793259,0.002,2793.6,2792.7,0.980504]
[1764625793465,0.002,2793.6,2792.7,1.86729228]
[1764625795076,0.002,2793.6,2792.7,0.88678828]
[1764625795254,0.002,2793.6,2792.7,0.575]
[1764625795435,0.36514065,2793.6,2792.7,0.575]
[1764625795651,0.36314065,2793.5,2792.7,0.575]
[1764625795851,0.36514065,2793.6,2792.7,0.575]
[1764625796588,0.002,2793.6,2792.7,0.575]
[1764625797350,0.002,2793.6,2792.7,3.58073391]
[1764625797546,0.002,2793.6,2792.7,4.15573391]
[1764625797547,1.07404472,2793.5,2792.7,4.15573391]
[1764625799265,7.15973364,2793.4,2792.7,4.15573391]
[1764625800186,7.15973364,2793.4,2792.7,0.575]
[1764625800363,7.15973364,2793.4,2792.7,4.1557495]
[1764625800870,7.15973364,2793.4,2792.7,0.575]
[1764625801189,0.82337784,2793.3,2792.6,0.001]
[1764625801484,7.52338695,2793.2,2792.6,0.001]
[1764625801853,10.74036945,2793.2,2792.6,0.001]
[1764625802071,0.36314065,2793.1,2792.6,0.001]
[1764625802369,11.1035101,2793.2,2792.6,0.001]
[1764625802568,1.15637473,2793.1,2792.6,0.001]
[1764625803986,7.16075904,2793.0,2792.6,0.001]
[1764625804295,0.72559411,2792.9,2792.6,0.001]
[1764625804467,0.77440821,2792.8,2792.6,0.001]
[1764625804672,0.36314065,2792.7,2792.6,0.001]
[1764625806196,5.26823876,2792.5,2792.4,0.001]
[1764625806360,0.405504,2792.2,2792.1,0.001]
[1764625806565,1.66373476,2792.2,2792.1,0.001]
[1764625806973,5.84323876,2792.2,2792.1,0.001]
[1764625807174,5.84323876,2792.2,2791.5,0.001]
[1764625807175,10.81466969,2791.6,2791.5,0.001]
[1764625807364,17.02804066,2791.6,2791.5,0.001]
[1764625808284,20.61021575,2791.6,2791.5,0.001]
[1764625808992,0.76864465,2791.3,2791.2,0.001]
[1764625809197,0.36314065,2791.3,2791.2,0.001]
[1764625809382,0.72559411,2791.5,2791.2,0.001]
[1764625809585,1.08873476,2791.3,2791.2,0.001]
[1764625810394,4.67129485,2791.3,2791.2,0.001]
[1764625810566,3.58256009,2791.3,2791.2,0.001]
[1764625812897,0.72559411,2791.4,2791.2,0.001]
[1764625813798,3.58230342,2791.5,2791.2,0.001]
[1764625815002,7.88943105,2791.8,2791.2,0.001]
[1764625815197,8.37767862,2791.8,2791.2,0.001]
[1764625815400,11.95959709,2791.8,2791.2,0.001]
[1764625816083,12.32273774,2791.8,2791.2,0.001]
[1764625816674,0.36314065,2791.3,2791.2,0.001]
[1764625817187,0.93814065,2791.4,2791.2,0.001]
[1764625817367,0.575,2791.4,2791.2,0.001]
[1764625818505,0.72559411,2791.6,2791.2,0.001]
[1764625818687,7.16460684,2791.5,2791.2,0.001]
[1764625818886,8.36933359,2791.5,2791.2,0.001]
[1764625819504,4.30770046,2791.7,2791.2,0.001]
[1764625819803,7.88980681,2791.7,2791.2,0.001]
[1764625821871,0.72559411,2791.6,2791.2,0.001]
[1764625822072,0.76864465,2791.3,2791.2,0.001]
[1764625822286,1.39351893,2791.3,2791.2,0.001]
[1764625823885,5.70167313,2791.3,2791.2,0.001]
[1764625826304,0.36314065,2791.0,2789.7,0.001]
[1764625826606,11.79517369,2791.0,2789.7,0.001]